fUSD/lending_fUSD_20260323
["ID","MTS","AMOUNT","RATE_DAILY","PERIOD"]
[408790830,1774275731646,171.26,6.345e-05,2]
[408790831,1774275731850,171.26,6.621e-05,2]
[408790832,1774275732061,171.26,6.897e-05,2]
[408790833,1774275732273,171.26,7.172e-05,2]
[408790834,1774275732488,171.26,7.448e-05,2]
[408790835,1774275732687,171.26,7.724e-05,2]
[408790836,1774275732886,171.26,8e-05,2]
[408790837,1774275733099,171.26,8.276e-05,2]
[408790838,1774275733320,171.26,8.552e-05,2]
[408790839,1774275733541,171.26,8.828e-05,2]
[408790840,1774275733756,171.26,9.103e-05,2]
[408790841,1774275734188,171.26,9.379e-05,2]
[408790842,1774275760175,500.0,0.00012,7]
[408790847,1774275984235,7259.85,8e-05,2]
[408790848,1774275984258,1015.22969047,8e-05,2]
[408790851,1774276122824,154.0,6.643e-05,2]
[408790852,1774276138225,8830.78030953,9.5e-05,3]
[408790853,1774276138249,10000.01,9.5e-05,3]
[408790854,1774276138272,4522.44544547,9.5e-05,3]
[408790876,1774276231577,-171.26,9.655e-05,2]
[408790877,1774276231587,-171.26,9.931e-05,2]
[408790879,1774276231597,-213.43984743,0.0001011,2]
[408790883,1774276231644,-2.92121541,0.0001011,2]
[408790884,1774276231653,-500.0,0.00010122,2]
[408790885,1774276231663,-171.26,0.00010207,2]
[408790886,1774276231673,-1379.38,0.00010219,2]
[408790887,1774276231682,-166.81,0.00010465,2]
[408790888,1774276231692,-193.24432443,0.00010475,2]
[408790889,1774276231704,-106.75567557,0.00010475,2]
[408790890,1774276231714,-1177.4331666,0.00010476,2]
[408790891,1774276231726,-22.5668334,0.00010476,2]
[408790892,1774276231736,-300.0,0.00010476,2]
[408790893,1774276231746,-300.0,0.00010476,2]
[408790894,1774276231756,-300.0,0.00010476,2]
[408790895,1774276231766,-1200.0,0.00010477,2]
[408790896,1774276231776,-150.0,0.00010478,2]
[408790897,1774276231786,-499.92761499,0.00010479,2]
[408790898,1774276231798,-3209.51724405,0.00010479,2]
[408790899,1774276231810,-987.75961641,0.00010479,2]
[408790900,1774276231822,-1933.86916611,0.00010479,2]
[408790901,1774276231838,-53682.74959118,0.00010479,2]
[408790903,1774276231851,-871.14161176,0.00010479,2]
[408790905,1774276231862,-2642.63241699,0.00010479,2]
[408790906,1774276231873,-341.348914,0.00010479,2]
[408790907,1774276231887,-326.88,0.00010479,2]
[408790909,1774276231910,-2625.65939992,0.00010479,2]
[408790910,1774276231921,-1009.784997,0.00010479,2]
[408790912,1774276231933,-900.0,0.00010479,2]
[408790913,1774276231944,-974.23737448,0.00010479,2]
[408790914,1774276231955,-7420.65486736,0.00010479,2]
[408790915,1774276231967,-571.68055395,0.00010479,2]
[408790916,1774276231978,-1159.94357071,0.00010479,2]
[408790919,1774276237663,-1131.83351109,0.00010478,2]
[408790920,1774276237674,-159.79901705,0.00010479,2]
[408790921,1774276237723,-10227.17335275,0.00010479,2]
[408790922,1774276237733,-171.26,0.00010483,2]
[408790923,1774276237743,-150.0,0.000106,2]
[408790924,1774276237753,-5000.0,0.00010621,2]
[408790925,1774276237763,-250.0,0.00010621,2]
[408790926,1774276237772,-478.3030328,0.00010621,2]
[408790927,1774276237782,-174.01,0.00010705,2]
[408790928,1774276237791,-312.64,0.00010705,2]
[408790929,1774276237801,-308.0,0.00010839,2]
[408790930,1774276237811,-166.66,0.00010959,2]
[408790931,1774276237820,-2500.0,0.00010979,2]
[408790932,1774276237830,-166.66,0.00011068,2]
[408790933,1774276237840,-9999.99,0.00011068,2]
[408790934,1774276237850,-3392.4,0.00011068,2]
[408790935,1774276237859,-8249.38,0.00011068,2]
[408790936,1774276237869,-299.99,0.00011068,2]
[408790937,1774276237879,-9999.99,0.00011068,2]
[408790938,1774276237889,-150.99,0.00011068,2]
[408790939,1774276237899,-999.99,0.00011068,2]
[408790940,1774276237909,-3287.783,0.00011077,2]
[408790942,1774276237918,-159.461,0.00011077,2]
[408790944,1774276237928,-1000.0,0.00011079,2]
[408790946,1774276237938,-485.69455804,0.00011099,2]
[408790947,1774276237948,-500.0,0.00011171,2]
[408790948,1774276237957,-731.16,0.00011172,2]
[408790949,1774276237967,-200.0,0.00011172,2]
[408790950,1774276237978,-175.5334476,0.00011172,2]
[408790951,1774276237995,-151.0,0.00011172,2]
[408790952,1774276238007,-500.0,0.00011172,2]
[408790953,1774276238017,-151.0,0.00011172,2]
[408790954,1774276238028,-500.0,0.00011172,2]
[408790955,1774276238038,-151.0,0.00011172,2]
[408790956,1774276238048,-151.0,0.00011172,2]
[408790957,1774276238058,-151.0,0.00011172,2]
[408790958,1774276238068,-151.0,0.00011172,2]
[408790959,1774276238078,-151.0,0.00011172,2]
[408790960,1774276238089,-500.0,0.00011172,2]
[408790961,1774276238099,-151.0,0.00011172,2]
[408790962,1774276238109,-151.0,0.00011172,2]
[408790963,1774276238121,-500.0,0.00011172,2]
[408790964,1774276238135,-500.0,0.00011172,2]
[408790965,1774276238144,-151.0,0.00011172,2]
[408790966,1774276238154,-500.0,0.00011172,2]
[408790967,1774276238164,-500.0,0.00011172,2]
[408790968,1774276238175,-151.0,0.00011172,2]
[408790969,1774276238186,-500.0,0.00011172,2]
[408790970,1774276238197,-151.0,0.00011172,2]
[408790971,1774276238208,-151.0,0.00011172,2]
[408790972,1774276238219,-151.0,0.00011172,2]
[408790973,1774276238229,-526.08794847,0.00011172,2]
[408790974,1774276238241,-151.0,0.00011172,2]
[408790975,1774276238251,-151.0,0.00011172,2]
[408790976,1774276238262,-151.0,0.00011172,2]
[408790977,1774276238272,-151.0,0.00011172,2]
[408790978,1774276238282,-166.66,0.00011178,2]
[408790979,1774276238293,-11885.31,0.00011288,2]
[408790980,1774276238304,-166.66,0.00011288,2]
[408790981,1774276238314,-4894.61,0.00011358,2]
[408790982,1774276238324,-166.66,0.00011397,2]
[408790983,1774276238334,-1701.98,0.00011419,2]
[408790984,1774276238351,-500.0,0.00011445,2]
[408790985,1774276238361,-731.16,0.00011446,2]
[408790986,1774276238372,-229.18677799,0.00011472,2]
[408790987,1774276238382,-605.22343181,0.00011472,2]
[408790988,1774276238393,-500.0,0.00011472,2]
[408790989,1774276238404,-500.0,0.00011472,2]
[408790990,1774276238414,-500.0,0.00011472,2]
[408790991,1774276238424,-500.0,0.00011472,2]
[408790992,1774276238435,-500.0,0.00011472,2]
[408790993,1774276238445,-500.0,0.00011472,2]
[408790994,1774276238456,-500.0,0.00011472,2]
[408790995,1774276238466,-550.0,0.00011472,2]
[408790996,1774276238476,-500.0,0.00011472,2]
[408790997,1774276238486,-578.20924308,0.00011473,2]
[408790998,1774276238496,-500.0,0.00011473,2]
[408790999,1774276238507,-434.04014355,0.00011473,2]
[408791000,1774276238517,-500.0,0.00011473,2]
[408791001,1774276238527,-500.0,0.00011473,2]
[408791002,1774276238538,-500.0,0.00011473,2]
[408791003,1774276238549,-500.0,0.00011473,2]
[408791004,1774276238560,-500.0,0.00011473,2]
[408791005,1774276238571,-500.0,0.00011473,2]
[408791006,1774276238582,-1348.30429874,0.00011485,2]
[408791007,1774276238592,-255.0,0.00011505,2]
[408791008,1774276238603,-166.66,0.00011507,2]
[408791009,1774276238613,-420.0,0.00011517,2]
[408791010,1774276238624,-1298.0,0.00011519,2]
[408791011,1774276238634,-1680.0,0.00011524,2]
[408791012,1774276238645,-485.69455801,0.00011525,2]
[408791013,1774276238656,-500.0,0.00011528,2]
[408791014,1774276238666,-500.0,0.00011719,2]
[408791015,1774276238677,-731.16,0.0001172,2]
[408791016,1774276238687,-1408.75513156,0.0001178,2]
[408791017,1774276238701,-500.0,0.00011993,2]
[408791018,1774276238717,-731.16,0.00011994,2]
[408791019,1774276238728,-485.69455801,0.00012072,2]
[408791020,1774276238739,-500.0,0.00012267,2]
[408791021,1774276238749,-731.16,0.00012268,2]
[408791022,1774276238760,-150.4651,0.000124,2]
[408791023,1774276238770,-731.17,0.00012542,2]
[408791024,1774276238781,-485.69455801,0.00012619,2]
[408791025,1774276238791,-224.0,0.00012636,2]
[408791026,1774276238801,-182.0,0.00012663,2]
[408791027,1774276238812,-2351.0,0.00012676,2]
[408791028,1774276238822,-250.0,0.00013,2]
[408791029,1774276238834,-485.69455801,0.00013166,2]
[408791030,1774276238844,-250.0,0.00013517,2]
[408791031,1774276238854,-150.0,0.00013609,2]
[408791032,1774276238864,-1264.805,0.00013609,2]
[408791033,1774276238875,-924.0,0.00013609,2]
[408791034,1774276238886,-1215.0,0.00013609,2]
[408791035,1774276238896,-621.0,0.00013609,2]
[408791036,1774276238907,-3515.0,0.00013609,2]
[408791037,1774276238917,-979.16666667,0.0001369,2]
[408791038,1774276238927,-160.0,0.0001369,2]
[408791039,1774276238938,-200.0,0.00013699,2]
[408791040,1774276238948,-485.69455801,0.00013712,2]
[408791041,1774276238958,-3292.0,0.00013944,2]
[408791042,1774276238969,-502.0,0.00014,2]
[408791043,1774276238979,-502.0,0.00014,2]
[408791044,1774276238990,-700.0,0.00014082,2]
[408791045,1774276239001,-599.60298507,0.00014212,2]
[408791046,1774276239011,-485.69455801,0.00014259,2]
[408791047,1774276239022,-152.0,0.00014287,3]
[408791048,1774276239032,-150.9317,0.000143,2]
[408791049,1774276239043,-1379.38,0.00014306,2]
[408791050,1774276239054,-1000.0,0.00014356,2]
[408791051,1774276239068,-2804.0,0.0001472,2]
[408791052,1774276239079,-485.69455801,0.00014806,2]
[408791053,1774276239090,-502.0,0.00014957,2]
[408791054,1774276239100,-152.0,0.00014983,4]
[408791055,1774276239111,-300.0,0.00015,2]
[408791056,1774276239121,-3240.0,0.00015022,2]
[408791057,1774276239135,-357.56,0.00015068,2]
[408791058,1774276239149,-789.9,0.00015205,2]
[408791059,1774276239160,-4609.0,0.00015338,2]
[408791060,1774276239172,-485.69455801,0.00015353,2]
[408791061,1774276239183,-700.0,0.00015452,2]
[408791062,1774276239197,-330.144147,0.00015654,7]
[408791063,1774276239207,-164.967281,0.00015654,7]
[408791064,1774276239217,-243.402378,0.00015654,7]
[408791065,1774276239227,-233.237796,0.00015654,7]
[408791066,1774276239238,-241.952013,0.00015654,7]
[408791067,1774276239247,-423.36229287,0.0001567,2]
[408791068,1774276239257,-152.0,0.00015678,5]
[408791069,1774276239267,-168.0,0.00015692,2]
[408791070,1774276239277,-1000.0,0.00015726,2]
[408791071,1774276239288,-1048.77559527,0.00015815,2]
[408791072,1774276239298,-500.0,0.00015862,2]
[408791073,1774276239308,-200.0,0.00015862,2]
[408791074,1774276239318,-1925.47,0.0001589,2]
[408791075,1774276239328,-503.75933752,0.000159,2]
[408791076,1774276239338,-167.38131735,0.000159,2]
[408791077,1774276239349,-3451.0820526,0.000159,2]
[408791078,1774276239359,-485.69455801,0.000159,2]
[408791079,1774276239369,-263.02122204,0.000159,2]
[408791080,1774276239380,-193.50293385,0.000159,2]
[408791081,1774276239390,-1731.53597812,0.000159,2]
[408791082,1774276239401,-3122.45123971,0.000159,2]
[408791083,1774276239412,-6375.23083689,0.000159,2]
[408791084,1774276239427,-3359.8413977,0.00015905,2]
[408791086,1774276239437,-502.0,0.00015913,3]
[408791088,1774276239448,-152.6045041,0.00015927,2]
[408791089,1774276239458,-1029.82550535,0.00015948,2]
[408791090,1774276239468,-22211.15387001,0.00015973,3]
[408791091,1774276239479,-168.0,0.00015983,2]
[408791092,1774276239489,-82.37911841,0.0001599,2]
[408791093,1774276239499,-155.0,0.0001599,2]
[408791094,1774276239510,-1000.0,0.0001599,2]
[408791095,1774276239521,-1000.0,0.0001599,2]
[408791096,1774276239531,-823.896,0.0001599,2]
[408791097,1774276239542,-157.01818049,0.0001599,2]
[408791098,1774276239553,-187.0,0.0001599,3]
[408791099,1774276239563,-155.0,0.0001599,3]
[408791100,1774276239574,-196.0,0.00015995,2]
[408791101,1774276239584,-500.0,0.00015999,2]
[408791102,1774276239594,-500.0,0.00015999,2]
[408791103,1774276239605,-500.0,0.00015999,2]
[408791104,1774276239618,-500.0,0.00015999,2]
[408791105,1774276239628,-500.0,0.00015999,2]
[408791106,1774276239640,-434.28277885,0.00015999,2]
[408791107,1774276239650,-744.57,0.00015999,2]
[408791108,1774276239661,-744.57,0.00015999,2]
[408791109,1774276239672,-744.57,0.00015999,2]
[408791110,1774276239683,-744.57,0.00015999,2]
[408791111,1774276239694,-744.57,0.00015999,2]
[408791112,1774276239705,-744.57,0.00015999,2]
[408791113,1774276239715,-744.57,0.00015999,2]
[408791114,1774276239726,-744.57,0.00015999,2]
[408791115,1774276239737,-744.57,0.00015999,2]
[408791116,1774276239748,-744.57,0.00015999,2]
[408791118,1774276239758,-744.57,0.00015999,2]
[408791119,1774276239768,-744.65504805,0.00015999,2]
[408791120,1774276239779,-1239.92084832,0.00015999,5]
[408791121,1774276239789,-1239.92084831,0.00015999,5]
[408791122,1774276239799,-1239.92084832,0.00015999,5]
[408791123,1774276239808,-175.19623888,0.00015999,2]
[408791124,1774276239820,-500.0,0.00015999,2]
[408791125,1774276239830,-500.0,0.00015999,2]
[408791126,1774276239840,-500.0,0.00015999,2]
[408791127,1774276239850,-500.0,0.00015999,2]
[408791128,1774276239860,-500.0,0.00015999,2]
[408791129,1774276239870,-500.0,0.00015999,2]
[408791130,1774276239880,-500.0,0.00015999,2]
[408791131,1774276239890,-350.0,0.00015999,2]
[408791132,1774276239900,-500.0,0.00015999,2]
[408791133,1774276239910,-500.0,0.00015999,2]
[408791134,1774276239920,-500.0,0.00015999,2]
[408791135,1774276239930,-500.0,0.00015999,2]
[408791136,1774276239940,-500.0,0.00015999,2]
[408791137,1774276239949,-500.0,0.00015999,2]
[408791138,1774276239960,-500.0,0.00015999,2]
[408791139,1774276239970,-500.0,0.00015999,2]
[408791140,1774276239980,-500.0,0.00015999,2]
[408791141,1774276239990,-500.0,0.00015999,2]
[408791142,1774276240014,-174.36070034,0.00015999,2]
[408791143,1774276240026,-196.0,0.00015999,2]
[408791144,1774276240037,-668.0,0.00016,5]
[408791145,1774276240047,-542.0,0.00016,5]
[408791146,1774276240056,-150.0,0.00016,2]
[408791147,1774276240067,-773104.18985143,0.00016,2]
[408791150,1774276242243,-1172.96774003,0.00016,2]
[408791151,1774276242256,-873.39,0.00016,2]
[408791152,1774276242268,-6250.77960331,0.00016,2]
[408791153,1774276242284,-506.38888323,0.00016,2]
[408791160,1774276242632,-111399.57877675,0.00016,2]
[408791161,1774276242659,-2433.4229203,0.00016,2]
[408791165,1774276244451,-4976.42433161,0.00013745,2]
[408791235,1774276245871,-1031.57566839,0.00013745,2]
[408791236,1774276245881,-275815.80905432,0.00016,2]
[408791237,1774276245920,-2624.72158937,0.00016,2]
[408791238,1774276245933,-1498.2,0.00016,2]
[408791269,1774276490294,151.71314499,9.51e-05,2]
[408791271,1774276630376,187.0,9.51e-05,3]
[408791273,1774276807761,155.0,9.51e-05,3]
[408791276,1774276890829,1834.0,0.00017,60]
[408791280,1774277239922,169.36740106,9e-05,2]
[408791282,1774277310876,-219.18768907,0.00010971,2]
[408791303,1774277432797,-1380.09438079,0.00011021,2]
[408791304,1774277432810,-1119.90561921,0.00011021,2]
[408791305,1774277432820,-231.24030518,0.00011046,2]
[408791306,1774277432832,-1670.86245039,0.00011046,2]
[408791307,1774277432844,-597.89724443,0.00011046,2]
[408791308,1774277432854,-894.66437781,0.00011071,2]
[408791309,1774277432865,-105.33562219,0.00011071,2]
[408791310,1774277432876,-300.0,0.00011493,2]
[408791311,1774277432886,-1200.0,0.00011506,2]
[408791312,1774277432896,-2123.21,0.00011507,2]
[408791313,1774277432905,-385.45437781,0.00012067,2]
[408791314,1774277432918,-814.54562219,0.00012067,2]
[408791315,1774277432927,-300.0,0.00012067,2]
[408791316,1774277432937,-2500.0,0.00012068,2]
[408791317,1774277432947,-2500.0,0.00012123,2]
[408791318,1774277432957,-250.0,0.00012123,2]
[408791319,1774277432967,-2500.0,0.00012123,2]
[408791320,1774277432976,-250.0,0.00012178,2]
[408791321,1774277432986,-150.0,0.000126,2]
[408791322,1774277432996,-517.43,0.000126,2]
[408791323,1774277433015,-302.0,0.00012623,2]
[408791324,1774277433030,-1680.0,0.00012656,2]
[408791325,1774277433040,-7421.35,0.00013156,2]
[408791326,1774277433051,-150.0,0.00013182,2]
[408791327,1774277433060,-420.0,0.00013246,2]
[408791328,1774277433071,-578.20924308,0.00013398,2]
[408791329,1774277433081,-500.0,0.00013398,2]
[408791330,1774277433092,-500.0,0.00013453,2]
[408791331,1774277433102,-500.0,0.00013508,2]
[408791332,1774277433111,-150.0,0.00013562,2]
[408791333,1774277433122,-500.0,0.00013563,2]
[408791334,1774277433132,-1763.96142564,0.00013567,2]
[408791335,1774277433142,-196.78633304,0.00013567,2]
[408791336,1774277433152,-282.71673119,0.00013567,2]
[408791337,1774277433162,-200.0,0.00013575,2]
[408791338,1774277433172,-8611.26,0.00013575,2]
[408791339,1774277433181,-4353.8,0.00013575,2]
[408791340,1774277433191,-152.54,0.00013699,2]
[408791341,1774277433201,-979.16666667,0.0001373,2]
[408791342,1774277433211,-160.0,0.0001373,2]
[408791343,1774277433221,-670.58624095,0.00013865,2]
[408791344,1774277433231,-500.0,0.00013865,2]
[408791345,1774277433242,-500.0,0.00013865,2]
[408791346,1774277433252,-500.0,0.00013865,2]
[408791347,1774277433262,-500.0,0.00013865,2]
[408791348,1774277433272,-500.0,0.00013865,2]
[408791349,1774277433282,-500.0,0.00013865,2]
[408791350,1774277433293,-500.0,0.00013865,2]
[408791351,1774277433303,-500.0,0.00013865,2]
[408791352,1774277433313,-500.0,0.00013865,2]
[408791353,1774277433323,-500.0,0.00013865,2]
[408791354,1774277433333,-200.0,0.00013865,2]
[408791355,1774277433343,-500.0,0.00013865,2]
[408791356,1774277433354,-500.0,0.00013865,2]
[408791357,1774277433371,-500.0,0.00013865,2]
[408791358,1774277433382,-250.0,0.00013865,2]
[408791359,1774277433392,-250.0,0.00013865,2]
[408791360,1774277433402,-250.0,0.00013865,2]
[408791361,1774277433412,-250.0,0.00013865,2]
[408791362,1774277433422,-250.0,0.00013865,2]
[408791363,1774277433432,-250.0,0.00013865,2]
[408791364,1774277433442,-250.0,0.00013865,2]
[408791365,1774277433453,-1345.0,0.00013873,2]
[408791366,1774277433463,-3515.0,0.00013873,2]
[408791367,1774277433473,-621.0,0.00013873,2]
[408791368,1774277433483,-1044.0,0.00013873,2]
[408791369,1774277433495,-150.0,0.00013873,2]
[408791370,1774277433509,-1264.805,0.00013873,2]
[408791371,1774277433519,-924.0,0.00013873,2]
[408791372,1774277433529,-415.0,0.00013873,2]
[408791373,1774277433540,-3761.0,0.00013873,2]
[408791374,1774277433552,-500.0,0.00013873,2]
[408791375,1774277433562,-2351.0,0.00013922,2]
[408791376,1774277433573,-502.0,0.00014,2]
[408791377,1774277433584,-700.0,0.00014082,2]
[408791378,1774277433595,-325.3,0.00014087,2]
[408791379,1774277433605,-500.0,0.00014147,2]
[408791380,1774277433615,-162.191,0.00014287,2]
[408791381,1774277433625,-3197.838,0.000143,2]
[408791382,1774277433635,-186.48,0.00014354,2]
[408791383,1774277433645,-500.0,0.00014355,2]
[408791384,1774277433656,-1000.0,0.00014356,2]
[408791385,1774277433666,-150.5228,0.000144,2]
[408791386,1774277433677,-500.0,0.00014421,2]
[408791387,1774277433687,-225.5045282,0.0001443,2]
[408791388,1774277433697,-587.0,0.0001454,2]
[408791389,1774277433707,-2627.9152,0.00014548,2]
[408791390,1774277433717,-9510.92773501,0.00014548,2]
[408791391,1774277433740,-29806.17008827,0.00014548,2]
[408791392,1774277433753,-18705.70587672,0.00014548,2]
[408791393,1774277433764,-2500.0,0.00014548,2]
[408791394,1774277433774,-1997.51569654,0.00014587,2]
[408791395,1774277433785,-596.06367839,0.00014587,2]
[408791396,1774277433795,-238.74,0.00014647,2]
[408791397,1774277433806,-500.0,0.00014647,2]
[408791398,1774277433816,-500.0,0.00014647,2]
[408791399,1774277433826,-500.0,0.00014647,2]
[408791400,1774277433837,-500.0,0.00014647,2]
[408791401,1774277433847,-500.0,0.00014647,2]
[408791402,1774277433858,-500.0,0.00014647,2]
[408791403,1774277433868,-500.0,0.00014647,2]
[408791404,1774277433879,-500.0,0.00014647,2]
[408791405,1774277433890,-500.0,0.00014647,2]
[408791406,1774277433901,-500.0,0.00014647,2]
[408791407,1774277433911,-500.0,0.00014647,2]
[408791408,1774277433922,-500.0,0.00014647,2]
[408791409,1774277433933,-500.0,0.00014647,2]
[408791410,1774277433944,-462.90493668,0.00014647,2]
[408791411,1774277433954,-500.0,0.00014647,2]
[408791412,1774277433964,-500.0,0.00014647,2]
[408791413,1774277433975,-500.0,0.00014647,2]
[408791414,1774277433985,-500.0,0.00014647,2]
[408791415,1774277433996,-500.0,0.00014647,2]
[408791416,1774277434006,-500.0,0.00014647,2]
[408791417,1774277434016,-500.0,0.00014647,2]
[408791418,1774277434027,-290.40891334,0.00014647,2]
[408791419,1774277434037,-266.06667155,0.00014647,2]
[408791420,1774277434048,-605.22343181,0.00014647,2]
[408791421,1774277434058,-229.18677799,0.00014647,2]
[408791422,1774277434068,-500.0,0.00014647,2]
[408791423,1774277434078,-579.36650928,0.00014647,2]
[408791424,1774277434094,-500.0,0.00014647,2]
[408791425,1774277434105,-41683.51429794,0.00014648,2]
[408791426,1774277434120,-18022.45752913,0.00014648,2]
[408791427,1774277434133,-1555.25933657,0.00014648,2]
[408791428,1774277434160,-1423.0,0.00014648,2]
[408791429,1774277434175,-3505.78758415,0.00014648,2]
[408791430,1774277434188,-888.63598024,0.00014648,2]
[408791431,1774277434204,-419.3,0.00014648,2]
[408791432,1774277434217,-732.5,0.00014648,2]
[408791433,1774277434235,-380.0,0.00014648,2]
[408791434,1774277437822,-15341.31009485,0.00014648,2]
[408791435,1774277437881,-320315.51617712,0.00014648,2]
[408791436,1774277437892,-255.0,0.00014674,2]
[408791437,1774277437902,-500.0,0.00014695,2]
[408791466,1774277438502,-1997.5156965,0.00014733,2]
[408791467,1774277438548,-596.06367838,0.00014733,2]
[408791468,1774277438561,-150.0,0.000148,2]
[408791469,1774277438573,-1000.0,0.000148,2]
[408791470,1774277438584,-502.0,0.00014857,2]
[408791471,1774277438596,-1997.5156965,0.00014879,2]
[408791472,1774277438607,-596.06367838,0.00014879,2]
[408791473,1774277438618,-238.74,0.00014921,2]
[408791474,1774277438629,-2000.0,0.00015,2]
[408791475,1774277438640,-1997.5156965,0.00015025,2]
[408791476,1774277438650,-596.06367838,0.00015025,2]
[408791477,1774277438660,-2804.0,0.0001504,2]
[408791478,1774277438671,-163.0,0.0001504,2]
[408791479,1774277438688,-250.0,0.00015077,2]
[408791480,1774277438700,-395.89,0.0001508,2]
[408791481,1774277438711,-1997.5156965,0.00015171,2]
[408791482,1774277438722,-596.06367838,0.00015171,2]
[408791483,1774277438734,-238.76,0.00015195,2]
[408791484,1774277438749,-3292.0,0.00015314,2]
[408791485,1774277438761,-1997.5156965,0.00015316,2]
[408791486,1774277438771,-596.06367838,0.00015316,2]
[408791487,1774277438782,-168.0,0.00015376,2]
[408791488,1774277438793,-700.0,0.00015452,2]
[408791489,1774277438805,-1997.5156965,0.00015462,2]
[408791490,1774277438815,-596.06367838,0.00015462,2]
[408791491,1774277438827,-1648.48,0.00015507,2]
[408791492,1774277438838,-9818.80084516,0.000156,2]
[408791493,1774277438850,-1000.0,0.000156,3]
[408791494,1774277438861,-1997.5156965,0.00015608,2]
[408791495,1774277438873,-596.06367838,0.00015608,2]
[408791496,1774277438884,-860.64,0.00015609,2]
[408791497,1774277438895,-419.64,0.00015609,2]
[408791498,1774277438906,-3378.46882951,0.00015652,2]
[408791499,1774277438917,-423.36229287,0.0001568,2]
[408791500,1774277438928,-406.919294,0.0001568,7]
[408791501,1774277438939,-233.111169,0.0001568,7]
[408791502,1774277438950,-239.137725,0.0001568,7]
[408791503,1774277438961,-197.960737,0.0001568,7]
[408791504,1774277438972,-413.695255,0.0001568,7]
[408791505,1774277438983,-223.45439596,0.000157,2]
[408791506,1774277438996,-5000.0,0.000157,2]
[408791507,1774277439007,-5000.0,0.000157,2]
[408791508,1774277439018,-6375.23083689,0.000157,2]
[408791509,1774277439030,-168.0,0.00015703,2]
[408791510,1774277439047,-503.75933752,0.00015708,2]
[408791511,1774277439059,-502.0,0.00015714,3]
[408791512,1774277439070,-1000.0,0.00015726,2]
[408791513,1774277439082,-1997.5156965,0.00015754,2]
[408791514,1774277439093,-596.06367838,0.00015754,2]
[408791515,1774277439105,-157.01818049,0.0001579,2]
[408791516,1774277439116,-536.0,0.000158,5]
[408791517,1774277439128,-5000.0,0.00015832,2]
[408791518,1774277439139,-325.3,0.00015848,2]
[408791519,1774277439150,-168.0,0.00015858,2]
[408791520,1774277439162,-500.0,0.00015872,2]
[408791521,1774277439173,-200.0,0.00015872,2]
[408791522,1774277439184,-1648.48,0.00015895,2]
[408791523,1774277439195,-536.2634,0.000159,2]
[408791524,1774277439206,-1997.5156965,0.000159,2]
[408791525,1774277439218,-1006.20353177,0.000159,2]
[408791526,1774277439230,-1006.20353177,0.000159,2]
[408791527,1774277439241,-1006.20353177,0.000159,2]
[408791528,1774277439252,-1006.20353177,0.000159,2]
[408791529,1774277439264,-1006.20353177,0.000159,2]
[408791530,1774277439275,-1006.20353177,0.000159,2]
[408791531,1774277439287,-1006.20353177,0.000159,2]
[408791532,1774277439298,-1006.20353177,0.000159,2]
[408791533,1774277439309,-1006.20353177,0.000159,2]
[408791534,1774277439320,-1006.20353177,0.000159,2]
[408791535,1774277439332,-1006.20353177,0.000159,2]
[408791536,1774277439343,-1006.20353177,0.000159,2]
[408791537,1774277439354,-1006.20353177,0.000159,2]
[408791538,1774277439366,-1006.20353177,0.000159,2]